fUST/lending_fUST_20250227
["ID","MTS","AMOUNT","RATE_DAILY","PERIOD"]
[354723408,1740645065245,-1176.62,0.00052328,120]
[354723409,1740645065255,-965.62,0.00052328,120]
[354723410,1740645065264,-1216.86,0.00052328,120]
[354723411,1740645065273,-536.82,0.00052328,120]
[354723412,1740645065282,-613.31,0.00052328,120]
[354723413,1740645065291,-1414.02,0.00052328,120]
[354723414,1740645065301,-799.1,0.00052328,120]
[354723415,1740645065310,-10598.07,0.00052328,6]
[354723416,1740645065320,-821.64,0.00052328,120]
[354723417,1740645065329,-3104.1,0.00052328,120]
[354723418,1740645065339,-1640.98,0.00052328,120]
[354723419,1740645065348,-1310.59,0.00052328,120]
[354723420,1740645065357,-17858.17,0.00052328,120]
[354723421,1740645065370,-641.14,0.00052328,120]
[354723422,1740645065379,-708.95,0.00052328,120]
[354723423,1740645065389,-823.99,0.00052328,120]
[354723424,1740645065398,-2086.09,0.00052328,120]
[354723425,1740645065408,-655.68,0.00052328,120]
[354723426,1740645065418,-1565.67,0.00052328,120]
[354723427,1740645065428,-1232.62,0.00052328,120]
[354723428,1740645065436,-7144.45,0.00052328,120]
[354723429,1740645065446,-846.21,0.00052328,120]
[354723430,1740645065456,-1631.0,0.00052329,30]
[354723431,1740645065465,-500.0,0.00052393,2]
[354723432,1740645065474,-500.0,0.00052493,2]
[354723433,1740645065483,-5225.09867172,0.00052525,2]
[354723434,1740645065493,-204.43518837,0.00052567,12]
[354723435,1740645065502,-500.0,0.00052593,2]
[354723436,1740645065511,-511.37,0.00052602,120]
[354723437,1740645065520,-649.71763133,0.00052602,120]
[354723438,1740645065530,-750.83,0.00052602,120]
[354723439,1740645065539,-537.68,0.00052602,120]
[354723440,1740645065548,-639.17,0.00052602,120]
[354723441,1740645065557,-681.92,0.00052602,120]
[354723442,1740645065566,-804.37,0.00052602,120]
[354723443,1740645065575,-663.83,0.00052602,120]
[354723444,1740645065585,-500.0,0.00052602,120]
[354723445,1740645065594,-556.53,0.00052602,120]
[354723446,1740645065604,-663.48,0.00052602,120]
[354723447,1740645065614,-569.72,0.00052602,120]
[354723448,1740645065624,-1031.79,0.00052602,120]
[354723449,1740645065633,-549.69,0.00052602,120]
[354723450,1740645065642,-540.2,0.00052602,120]
[354723451,1740645065651,-1080.0,0.00052602,120]
[354723452,1740645065661,-150.87,0.00052602,120]
[354723453,1740645065670,-701.25,0.00052602,120]
[354723454,1740645065680,-706.92,0.00052602,120]
[354723455,1740645065689,-462.68166767,0.00052602,120]
[354723456,1740645065698,-1475.23,0.00052602,120]
[354723457,1740645065708,-3605.51,0.00052602,120]
[354723458,1740645065717,-706.59,0.00052602,120]
[354723459,1740645065727,-5880.65,0.00052602,120]
[354723460,1740645065736,-687.22,0.00052602,120]
[354723461,1740645065745,-829.07,0.00052602,120]
[354723462,1740645065755,-2715.66,0.00052602,120]
[354723463,1740645065764,-1233.62,0.00052602,120]
[354723464,1740645065774,-890.87,0.00052602,120]
[354723465,1740645065783,-44425.16,0.00052602,7]
[354723466,1740645065792,-525.49,0.00052602,120]
[354723467,1740645065801,-1160.72,0.00052602,120]
[354723468,1740645065811,-1542.34,0.00052602,120]
[354723469,1740645065820,-10995.86,0.00052602,120]
[354723470,1740645065829,-948.49,0.00052602,120]
[354723471,1740645065840,-3757.81,0.00052602,120]
[354723472,1740645065849,-917.96,0.00052602,120]
[354723473,1740645065858,-564.18,0.00052602,120]
[354723474,1740645065867,-501.08,0.00052602,120]
[354723475,1740645065876,-1429.82,0.00052602,120]
[354723476,1740645065885,-621.86,0.00052602,120]
[354723477,1740645065894,-978.18,0.00052602,120]
[354723478,1740645065903,-242.58220379,0.00052602,120]
[354723479,1740645065914,-2204.67,0.00052602,120]
[354723480,1740645065927,-1661.65,0.00052602,120]
[354723481,1740645065937,-1062.09,0.00052602,120]
[354723482,1740645065948,-2457.94,0.00052602,120]
[354723483,1740645065958,-668.19,0.00052602,120]
[354723484,1740645065967,-1292.87,0.00052602,120]
[354723485,1740645065976,-778.13,0.00052602,120]
[354723486,1740645065987,-1176.62,0.00052602,120]
[354723487,1740645065999,-965.62,0.00052602,120]
[354723488,1740645066008,-1216.86,0.00052602,120]
[354723489,1740645066018,-536.82,0.00052602,120]
[354723490,1740645066028,-613.31,0.00052602,120]
[354723491,1740645066038,-1414.02,0.00052602,120]
[354723492,1740645066049,-799.1,0.00052602,120]
[354723493,1740645066060,-10598.07,0.00052602,6]
[354723494,1740645066070,-821.64,0.00052602,120]
[354723495,1740645066079,-3104.1,0.00052602,120]
[354723496,1740645066091,-1640.98,0.00052602,120]
[354723497,1740645066100,-1310.59,0.00052602,120]
[354723498,1740645066109,-17858.17,0.00052602,120]
[354723499,1740645066119,-641.14,0.00052602,120]
[354723500,1740645066128,-708.95,0.00052602,120]
[354723501,1740645066138,-823.99,0.00052602,120]
[354723502,1740645066147,-2086.09,0.00052602,120]
[354723503,1740645066160,-655.68,0.00052602,120]
[354723504,1740645066169,-1565.67,0.00052602,120]
[354723505,1740645066179,-1232.62,0.00052602,120]
[354723506,1740645066190,-7144.45,0.00052602,120]
[354723507,1740645066200,-846.21,0.00052602,120]
[354723508,1740645066210,-1631.0,0.00052603,30]
[354723509,1740645066220,-10000.0,0.00052622,20]
[354723510,1740645066229,-500.0,0.00052693,2]
[354723511,1740645066239,-2155.89,0.000527,30]
[354723512,1740645066248,-150.0,0.000527,10]
[354723513,1740645066258,-500.0,0.00052793,2]
[354723514,1740645066268,-437.53,0.000528,30]
[354723515,1740645066277,-89119.82,0.000528,30]
[354723516,1740645066287,-5274.61,0.000528,30]
[354723517,1740645066296,-1000.0,0.00052852,10]
[354723518,1740645066305,-511.39429808,0.00052876,120]
[354723519,1740645066315,-751.02100452,0.00052876,120]
[354723520,1740645066324,-537.74091693,0.00052876,120]
[354723521,1740645066333,-639.40277841,0.00052876,120]
[354723522,1740645066344,-682.03056373,0.00052876,120]
[354723523,1740645066353,-804.37,0.00052876,120]
[354723524,1740645066363,-663.95312065,0.00052876,120]
[354723525,1740645066376,-496.15999311,0.00052876,120]
[354723526,1740645066385,-556.54237316,0.00052876,120]
[354723527,1740645066394,-663.54979526,0.00052876,120]
[354723528,1740645066403,-569.90152267,0.00052876,120]
[354723529,1740645066414,-1031.80983948,0.00052876,120]
[354723530,1740645066424,-549.89890437,0.00052876,120]
[354723531,1740645066433,-540.27736184,0.00052876,120]
[354723532,1740645066444,-1080.23373384,0.00052876,120]
[354723533,1740645066455,-701.36020238,0.00052876,120]
[354723534,1740645066465,-706.99513258,0.00052876,120]
[354723535,1740645066476,-1475.41676091,0.00052876,120]
[354723536,1740645066485,-3605.71972481,0.00052876,120]
[354723537,1740645066495,-706.64967915,0.00052876,120]
[354723538,1740645066504,-5880.68360713,0.00052876,120]
[354723539,1740645066514,-687.41062503,0.00052876,120]
[354723540,1740645066632,-829.30376966,0.00052876,120]
[354723541,1740645066643,-2715.68455333,0.00052876,120]
[354723542,1740645066653,-1233.81965003,0.00052876,120]
[354723543,1740645066662,-891.05997427,0.00052876,120]
[354723544,1740645066671,-44425.27178657,0.00052876,7]
[354723545,1740645066681,-525.57157522,0.00052876,120]
[354723546,1740645066690,-1160.93987883,0.00052876,120]
[354723547,1740645066699,-1542.37438406,0.00052876,120]
[354723548,1740645066709,-10996.01602185,0.00052876,120]
[354723549,1740645066718,-948.50806788,0.00052876,120]
[354723550,1740645066727,-3758.03392696,0.00052876,120]
[354723551,1740645066736,-917.99164563,0.00052876,120]
[354723552,1740645066745,-564.26280842,0.00052876,120]
[354723553,1740645066754,-501.2007733,0.00052876,120]
[354723554,1740645066763,-1429.90905578,0.00052876,120]
[354723555,1740645066773,-621.90718333,0.00052876,120]
[354723556,1740645066781,-978.27,0.00052876,120]
[354723557,1740645066791,-2204.82997738,0.00052876,120]
[354723558,1740645066800,-1661.82591978,0.00052876,120]
[354723559,1740645066809,-1062.09281406,0.00052876,120]
[354723560,1740645066819,-2457.98037785,0.00052876,120]
[354723561,1740645066827,-668.40626323,0.00052876,120]
[354723562,1740645066837,-1293.06070012,0.00052876,120]
[354723563,1740645066847,-778.17180171,0.00052876,120]
[354723564,1740645066855,-1176.75073891,0.00052876,120]
[354723565,1740645066865,-965.76533796,0.00052876,120]
[354723566,1740645066874,-1217.0664889,0.00052876,120]
[354723567,1740645066883,-536.89463115,0.00052876,120]
[354723568,1740645066891,-613.34573276,0.00052876,120]
[354723569,1740645066900,-1414.17092718,0.00052876,120]
[354723570,1740645066909,-799.33943345,0.00052876,120]
[354723571,1740645066919,-10598.08793069,0.00052876,6]
[354723572,1740645066928,-821.65481984,0.00052876,120]
[354723573,1740645066938,-3104.10026018,0.00052876,120]
[354723574,1740645066947,-1641.08205127,0.00052876,120]
[354723575,1740645066956,-1310.77185536,0.00052876,120]
[354723576,1740645066965,-17858.26788587,0.00052876,120]
[354723577,1740645066974,-641.23166182,0.00052876,120]
[354723578,1740645066984,-709.06661287,0.00052876,120]
[354723579,1740645066993,-824.04088222,0.00052876,120]
[354723580,1740645067003,-2086.12380787,0.00052876,120]
[354723581,1740645067013,-655.89019311,0.00052876,120]
[354723582,1740645067024,-1565.78009033,0.00052876,120]
[354723583,1740645067034,-1232.77680593,0.00052876,120]
[354723584,1740645067043,-7144.47256653,0.00052876,120]
[354723585,1740645067054,-846.29,0.00052876,120]
[354723586,1740645067066,-1631.0,0.00052877,30]
[354723587,1740645067076,-500.0,0.00052893,2]
[354723588,1740645067088,-500.0,0.00052993,2]
[354723589,1740645067098,-464.11273783,0.00053,120]
[354723590,1740645067108,-24943.0,0.00053,120]
[354723591,1740645067117,-36053.73966031,0.00053,120]
[354723592,1740645067127,-500.0,0.00053093,2]
[354723593,1740645067137,-804.37,0.0005315,120]
[354723594,1740645067148,-1631.0,0.00053151,30]
[354723595,1740645067157,-500.0,0.00053193,2]
[354723596,1740645067167,-4044.52,0.000532,30]
[354723597,1740645067175,-250.0,0.00053248,10]
[354723598,1740645067185,-500.0,0.00053293,2]
[354723599,1740645067194,-500.0,0.00053393,2]
[354723600,1740645067203,-804.37,0.00053424,120]
[354723601,1740645067213,-1631.0,0.00053425,30]
[354723602,1740645067222,-1000.0,0.00053452,10]
[354723603,1740645067231,-2000.0,0.00053472,10]
[354723604,1740645067241,-500.0,0.00053493,2]
[354723605,1740645067250,-1290.03605432,0.000535,120]
[354723606,1740645067259,-500.0,0.00053593,2]
[354723607,1740645067268,-500.0,0.00053693,2]
[354723608,1740645067282,-804.37,0.00053698,120]
[354723609,1740645067292,-1640.42573735,0.00053698,30]
[354723610,1740645067302,-423.0,0.000537,29]
[354723611,1740645067312,-500.0,0.00053793,2]
[354723612,1740645067322,-350.0,0.00053796,10]
[354723613,1740645067333,-500.0,0.00053893,2]
[354723614,1740645067343,-804.37,0.00053972,120]
[354723615,1740645067352,-500.0,0.00053993,2]
[354723616,1740645067363,-1095.21958828,0.00054,120]
[354723617,1740645067376,-2155.89,0.00054,30]
[354723618,1740645067386,-667.82907549,0.00054,120]
[354723619,1740645067396,-500.0,0.00054093,2]
[354723620,1740645067407,-437.53,0.000541,30]
[354723621,1740645067416,-89119.82,0.000541,30]
[354723622,1740645067426,-5274.61,0.000541,30]
[354723623,1740645067436,-500.0,0.00054193,2]
[354723624,1740645067447,-804.37,0.00054246,120]
[354723625,1740645067457,-500.0,0.00054293,2]
[354723626,1740645067467,-450.0,0.00054344,10]
[354723627,1740645067478,-500.0,0.00054393,2]
[354723628,1740645067488,-500.0,0.00054493,2]
[354723629,1740645067498,-804.37,0.0005452,120]
[354723630,1740645067508,-500.0,0.00054593,2]
[354723631,1740645067518,-500.0,0.00054693,2]
[354723632,1740645067527,-204.43518837,0.00054789,13]
[354723633,1740645067538,-500.0,0.00054793,2]
[354723634,1740645067548,-600.0,0.00054794,120]
[354723635,1740645067559,-600.0,0.00054794,120]
[354723636,1740645067569,-600.0,0.00054794,120]
[354723637,1740645067580,-600.0,0.00054794,120]
[354723638,1740645067591,-600.0,0.00054794,120]
[354723639,1740645067601,-600.0,0.00054794,120]
[354723640,1740645067612,-400.0,0.00054794,120]
[354723641,1740645067623,-804.37,0.00054794,120]
[354723642,1740645067634,-152.76026094,0.00054794,120]
[354723643,1740645067644,-500.0,0.00054794,120]
[354723644,1740645067654,-500.0,0.00054794,120]
[354723645,1740645067665,-500.0,0.00054794,120]
[354723646,1740645067675,-500.0,0.00054794,120]
[354723647,1740645067685,-500.0,0.00054794,120]
[354723648,1740645067695,-500.0,0.00054794,120]
[354723649,1740645067705,-500.0,0.00054794,120]
[354723650,1740645067714,-500.0,0.00054794,120]
[354723651,1740645067724,-500.0,0.00054794,120]
[354723652,1740645067734,-500.0,0.00054794,120]
[354723653,1740645067743,-500.0,0.00054794,120]
[354723654,1740645067754,-500.0,0.00054794,120]
[354723655,1740645067763,-500.0,0.00054794,120]
[354723656,1740645067774,-500.0,0.00054794,120]
[354723657,1740645067783,-500.0,0.00054794,120]
[354723658,1740645067793,-500.0,0.00054794,120]
[354723659,1740645067803,-241.99375215,0.00054794,120]
[354723660,1740645067813,-500.0,0.00054794,120]
[354723661,1740645067823,-500.0,0.00054794,120]
[354723662,1740645067833,-500.0,0.00054794,120]
[354723663,1740645067843,-500.0,0.00054794,120]
[354723664,1740645067852,-502.23778756,0.00054794,120]
[354723665,1740645067862,-1500.0,0.00054795,120]
[354723666,1740645067871,-1000.0,0.00054795,30]
[354723667,1740645067881,-1000.0,0.00054795,10]
[354723668,1740645067891,-1000.0,0.00054795,30]
[354723669,1740645067900,-500.0,0.00054795,120]
[354723670,1740645067910,-500.0,0.00054795,120]
[354723671,1740645067920,-500.0,0.00054795,120]
[354723672,1740645067930,-500.0,0.00054795,120]
[354723673,1740645067940,-500.0,0.00054795,120]
[354723674,1740645067950,-500.0,0.00054795,120]
[354723675,1740645067960,-500.0,0.00054795,120]
[354723676,1740645067969,-500.0,0.00054795,120]
[354723677,1740645067978,-500.0,0.00054795,120]
[354723678,1740645067988,-500.0,0.00054795,120]
[354723679,1740645067998,-500.0,0.00054795,120]
[354723680,1740645068007,-500.0,0.00054795,120]
[354723681,1740645068017,-500.0,0.00054795,120]
[354723682,1740645068026,-500.0,0.00054795,120]
[354723683,1740645068036,-500.0,0.00054795,120]
[354723684,1740645068045,-500.0,0.00054795,120]
[354723685,1740645068055,-500.0,0.00054795,120]
[354723686,1740645068065,-500.0,0.00054795,120]
[354723687,1740645068074,-500.0,0.00054795,120]
[354723688,1740645068084,-500.0,0.00054795,120]
[354723689,1740645068094,-500.0,0.00054795,120]
[354723690,1740645068104,-500.0,0.00054795,120]
[354723691,1740645068114,-500.0,0.00054795,120]
[354723692,1740645068124,-500.0,0.00054795,120]
[354723693,1740645068134,-500.0,0.00054795,120]
[354723694,1740645068144,-500.0,0.00054795,120]
[354723695,1740645068153,-500.0,0.00054795,120]
[354723696,1740645068163,-500.0,0.00054795,120]
[354723697,1740645068173,-500.0,0.00054795,120]
[354723698,1740645068183,-500.0,0.00054795,120]
[354723699,1740645068193,-500.0,0.00054795,120]
[354723700,1740645068203,-500.0,0.00054795,120]
[354723701,1740645068213,-500.0,0.00054795,120]
[354723702,1740645068223,-500.0,0.00054795,120]
[354723703,1740645068233,-500.0,0.00054795,120]
[354723704,1740645068243,-500.0,0.00054795,120]
[354723705,1740645068253,-500.0,0.00054795,120]
[354723706,1740645068263,-500.0,0.00054795,120]
[354723707,1740645068273,-500.0,0.00054795,120]
[354723708,1740645068283,-500.0,0.00054795,120]
[354723709,1740645068293,-500.0,0.00054795,120]
[354723710,1740645068302,-500.0,0.00054795,120]
[354723711,1740645068312,-500.0,0.00054795,120]
[354723712,1740645068322,-500.0,0.00054795,120]
[354723713,1740645068332,-500.0,0.00054795,120]
[354723714,1740645068342,-500.0,0.00054795,120]
[354723715,1740645068351,-500.0,0.00054795,120]
[354723716,1740645068362,-500.0,0.00054795,120]
[354723717,1740645068375,-500.0,0.00054795,120]
[354723718,1740645068384,-500.0,0.00054795,120]
[354723719,1740645068394,-500.0,0.00054795,120]
[354723720,1740645068406,-500.0,0.00054795,120]
[354723721,1740645068416,-500.0,0.00054795,120]
[354723722,1740645068425,-500.0,0.00054795,120]
[354723723,1740645068435,-500.0,0.00054795,120]
[354723724,1740645068445,-500.0,0.00054795,120]
[354723725,1740645068457,-500.0,0.00054795,120]
[354723726,1740645068466,-500.0,0.00054795,120]
[354723727,1740645068475,-500.0,0.00054795,120]
[354723728,1740645068485,-500.0,0.00054795,120]
[354723729,1740645068494,-500.0,0.00054795,120]
[354723730,1740645068503,-500.0,0.00054795,120]
[354723731,1740645068512,-500.0,0.00054795,120]
[354723732,1740645068521,-500.0,0.00054795,120]
[354723733,1740645068532,-500.0,0.00054795,120]
[354723734,1740645068542,-500.0,0.00054795,120]
[354723735,1740645068552,-500.0,0.00054795,120]
[354723736,1740645068560,-500.0,0.00054795,120]
[354723737,1740645068569,-500.0,0.00054795,120]
[354723738,1740645068578,-500.0,0.00054795,120]
[354723739,1740645068587,-500.0,0.00054795,120]
[354723740,1740645068596,-306.42402199,0.00054795,120]
[354723741,1740645068605,-500.0,0.00054795,120]
[354723742,1740645068614,-500.0,0.00054795,120]
[354723743,1740645068623,-500.0,0.00054795,120]
[354723744,1740645068632,-500.0,0.00054795,120]
[354723745,1740645068642,-500.0,0.00054795,120]
[354723746,1740645068651,-500.0,0.00054795,120]
[354723747,1740645068660,-500.0,0.00054795,120]
[354723748,1740645068669,-500.0,0.00054795,120]
[354723749,1740645068679,-500.0,0.00054795,120]
[354723750,1740645068688,-500.0,0.00054795,120]
[354723751,1740645068697,-500.0,0.00054795,120]
[354723752,1740645068707,-150.33,0.00054795,30]
[354723753,1740645068716,-550.0,0.00054892,15]
[354723754,1740645068725,-500.0,0.00054893,2]
[354723755,1740645068735,-500.0,0.00054993,2]
[354723756,1740645068744,-1327.55000522,0.00055,120]
[354723757,1740645068753,-24943.0,0.00055,120]
[354723758,1740645068762,-20000.0,0.00055,120]
[354723759,1740645068771,-20000.0,0.00055,120]
[354723760,1740645068781,-20000.0,0.00055,120]
[354723761,1740645068790,-4044.52,0.00055,30]
[354723762,1740645068799,-804.37,0.00055068,120]
[354723763,1740645068808,-150.33,0.00055069,30]
[354723764,1740645068817,-500.0,0.00055093,2]
[354723765,1740645068826,-500.0,0.00055193,2]
[354723766,1740645068835,-423.0,0.000552,30]
[354723767,1740645068945,-500.0,0.00055293,2]
[354723768,1740645068955,-2155.89,0.000553,30]
[354723769,1740645068964,-804.37,0.00055342,120]
[354723770,1740645068974,-201.57122876,0.00055343,30]
[354723771,1740645068983,-151.0,0.0005537,120]
[354723772,1740645068992,-500.0,0.00055393,2]
[354723773,1740645069002,-650.0,0.0005544,15]
[354723774,1740645069011,-500.0,0.00055493,2]
[354723775,1740645069020,-500.0,0.00055593,2]
[354723776,1740645069029,-804.37,0.00055616,120]
[354723777,1740645069039,-167.273,0.00055673,120]
[354723778,1740645069048,-252.3745,0.00055673,120]
[354723779,1740645069057,-500.0,0.00055693,2]
[354723780,1740645069066,-500.0,0.00055793,2]
[354723781,1740645069075,-804.37,0.0005589,120]
[354723782,1740645069084,-500.0,0.00055893,2]
[354723783,1740645069094,-2661.22,0.000559,2]
[354723784,1740645069103,-750.0,0.00055988,15]
[354723785,1740645069113,-500.0,0.00055993,2]
[354723786,1740645069122,-1000.0,0.00056,30]
[354723787,1740645069132,-500.0,0.00056093,2]
[354723788,1740645069141,-804.37,0.00056164,120]
[354723789,1740645069151,-500.0,0.00056193,2]
[354723790,1740645069161,-500.0,0.00056293,2]
[354723791,1740645069171,-500.0,0.00056393,2]
[354723792,1740645069180,-804.37,0.00056438,120]
[354723793,1740645069192,-500.0,0.00056493,2]
[354723794,1740645069202,-850.0,0.00056536,15]
[354723795,1740645069211,-500.0,0.00056593,2]
[354723796,1740645069220,-5225.09867172,0.00056685,2]
[354723797,1740645069230,-500.0,0.00056693,2]
[354723798,1740645069240,-423.0,0.000567,31]
[354723799,1740645069250,-804.37,0.00056712,120]
[354723800,1740645069260,-500.0,0.00056793,2]
[354723801,1740645069270,-500.0,0.00056893,2]
[354723802,1740645069279,-10119.64661703,0.00056942,30]
[354723803,1740645069288,-804.37,0.00056986,120]
[354723804,1740645069297,-500.0,0.00056993,2]
[354723805,1740645069305,-1875.14136704,0.00057,120]
[354723806,1740645069315,-4949.0,0.00057,120]
[354723807,1740645069324,-24943.0,0.00057,120]
[354723808,1740645069333,-204.43518837,0.00057011,13]
[354723809,1740645069345,-950.0,0.00057084,15]
[354723810,1740645069354,-500.0,0.00057093,2]
[354723811,1740645069364,-500.0,0.00057193,2]
[354723812,1740645069376,-804.37,0.0005726,120]
[354723813,1740645069385,-500.0,0.00057293,2]
[354723814,1740645069395,-500.0,0.00057393,2]
[354723815,1740645069405,-50000.3767,0.000574,30]
[354723816,1740645069415,-389.76440128,0.00057438,120]
[354723817,1740645069423,-500.0,0.00057493,2]
[354723818,1740645069432,-804.37,0.00057534,120]
[354723819,1740645069442,-1000.0,0.00057534,2]
[354723820,1740645069451,-1000.0,0.00057534,10]
[354723821,1740645069460,-500.0,0.00057593,2]
[354723822,1740645069469,-1050.0,0.00057632,15]
[354723823,1740645069478,-500.0,0.00057693,2]
[354723824,1740645069487,-500.0,0.00057793,2]
[354723825,1740645069503,-804.37,0.00057808,120]
[354723826,1740645069512,-500.0,0.00057893,2]
[354723827,1740645069521,-503.54,0.00057993,2]
[354723828,1740645069530,-804.37,0.00058082,120]
[354723829,1740645069540,-1150.0,0.00058179,15]
[354723830,1740645069549,-423.0,0.000582,32]
[354723831,1740645069558,-804.37,0.00058356,120]
[354723832,1740645069567,-804.37,0.0005863,120]
[354723833,1740645069576,-505.17584848,0.000587,120]
[354723834,1740645069587,-829.58400761,0.00058727,15]
[354723835,1740645069598,-151.0,0.00058822,120]
[354723836,1740645069607,-804.56232496,0.00058904,120]
[354723837,1740645069616,-24943.0,0.00059,120]
[354723838,1740645069625,-503.5003667,0.00059,120]
[354723839,1740645069635,-204.43518837,0.00059233,14]
[354723840,1740645069644,-423.0,0.000597,33]
[354723841,1740645069652,-3595.33104367,0.000599,120]
[354723842,1740645069662,-10000.0,0.0006,60]
[354723843,1740645069671,-1301.03357657,0.0006,120]
[354723844,1740645069680,-1000.0,0.0006,120]
[354723845,1740645069691,-200.0,0.0006,30]
[354723846,1740645069702,-1000.0,0.0006,120]
[354723847,1740645069711,-163.36406266,0.0006,120]
[354723848,1740645069720,-26975.9219,0.0006,2]
[354723849,1740645069730,-20000.0,0.0006,120]
[354723850,1740645069739,-20000.0,0.0006,120]
[354723851,1740645069748,-20000.0,0.0006,120]
[354723852,1740645069758,-20000.0,0.0006,120]
[354723853,1740645069767,-20000.0,0.0006,120]
[354723854,1740645069776,-81519.95133,0.0006,120]
[354723855,1740645069785,-5225.09867172,0.00060844,2]
[354723856,1740645069795,-24943.0,0.00061,120]
[354723857,1740645069805,-423.0,0.000612,34]
[354723858,1740645069814,-204.43518837,0.00061456,15]
[354723859,1740645069823,-2155.89,0.00062,30]
[354723860,1740645069832,-437.53,0.00062,30]
[354723861,1740645069843,-78048.25530189,0.00062,30]
[354723862,1740645069954,-31.79730582,0.00062,30]
[354723863,1740645069965,-322.7826615,0.00062,30]
[354724292,1740645997205,-491.85009645,0.00025,4]
[354724341,1740646238539,-33899.3392223,0.00025,4]
[354724343,1740646238549,-1222.04977226,0.000258,2]
[354724345,1740646238559,-204.43518837,0.000259,4]
[354724347,1740646238568,-204.43518837,0.00031264,5]
[354724349,1740646238578,-1222.04977222,0.00034243,2]
[354724351,1740646238588,-204.43518837,0.00036627,7]
[354724353,1740646238597,-204.43518837,0.00041991,9]
[354724355,1740646238606,-1222.04977222,0.00042686,28]
[354724357,1740646238615,-500.0,0.000452,7]
[354724359,1740646238625,-500.0,0.000452,7]
[354724361,1740646238635,-500.0,0.000452,7]
[354724363,1740646238645,-500.0,0.000452,7]
[354724365,1740646238655,-500.0,0.000452,7]
[354724367,1740646238665,-500.0,0.000452,7]
[354724369,1740646238675,-340.98,0.000452,7]
[354724372,1740646238684,-7982.28837579,0.00045752,2]
[354724374,1740646238694,-1000.0,0.00046574,120]
[354724375,1740646238703,-12657.3,0.00046574,120]
[354724378,1740646238713,-500.0,0.00046575,120]
[354724380,1740646238722,-500.0,0.00046575,120]
[354724381,1740646238731,-500.0,0.00046575,120]
[354724384,1740646238741,-500.0,0.00046575,120]
[354724385,1740646238750,-500.0,0.00046575,120]
[354724387,1740646238759,-500.0,0.00046575,120]
[354724389,1740646238770,-500.0,0.00046575,120]
[354724392,1740646238781,-500.0,0.00046575,120]
[354724393,1740646238790,-500.0,0.00046575,120]
[354724396,1740646238800,-500.0,0.00046575,120]
[354724398,1740646238810,-500.0,0.00046575,120]
[354724399,1740646238821,-500.0,0.00046575,120]
[354724402,1740646238838,-500.0,0.00046575,120]
[354724405,1740646238853,-500.0,0.00046575,120]
[354724407,1740646238862,-502.87875738,0.00046575,120]
[354724409,1740646238872,-500.0,0.00046575,120]
[354724411,1740646238881,-500.0,0.00046575,120]
[354724413,1740646238890,-503.83223642,0.00046575,120]
[354724415,1740646238900,-500.0,0.00046575,120]
[354724417,1740646238910,-500.0,0.00046575,120]
[354724419,1740646238919,-297.08668723,0.00046575,10]
[354724421,1740646238928,-500.0,0.00046575,120]
[354724423,1740646238940,-500.0,0.00046575,120]
[354724425,1740646238950,-500.0,0.00046575,120]
[354724427,1740646238959,-500.0,0.00046575,120]